[Event "Early-Titled-Tuesday-Blitz-October-10-2023"]
[Site "Chess.com"]
[Date "2023.10.10"]
[Round "10"]
[White "Josgar05"]
[Black "Jojo_898"]
[Result "1-0"]
[WhiteElo "2297"]
[BlackElo "2378"]
[TimeControl "180+1"]
[EndTime "9:54:44 PDT"]
[Termination "Josgar05 won on time"]

1. d4 {[%clk 0:03:00.9]} 1... Nf6 {[%clk 0:02:59.9]} 2. Nf3 {[%clk 0:03:01.4]}
2... g6 {[%clk 0:02:58.8]} 3. c4 {[%clk 0:03:01.5]} 3... b6 {[%clk 0:02:57.9]}
4. Nc3 {[%clk 0:02:59.3]} 4... Bb7 {[%clk 0:02:58.5]} 5. g3 {[%clk 0:02:59.5]}
5... Bg7 {[%clk 0:02:59]} 6. Bg2 {[%clk 0:02:59.4]} 6... O-O {[%clk 0:02:59.7]}
7. O-O {[%clk 0:02:59.1]} 7... c5 {[%clk 0:02:59.9]} 8. d5 {[%clk 0:02:58.8]}
8... e6 {[%clk 0:03:00.3]} 9. a4 {[%clk 0:02:57.9]} 9... exd5 {[%clk 0:02:55.4]}
10. cxd5 {[%clk 0:02:58.1]} 10... d6 {[%clk 0:02:55.3]} 11. Re1 {[%clk
0:02:57.9]} 11... Nbd7 {[%clk 0:02:55.1]} 12. Bf4 {[%clk 0:02:56.7]} 12... Qe7
{[%clk 0:02:47.2]} 13. e4 {[%clk 0:02:56.6]} 13... Ng4 {[%clk 0:02:43.6]} 14.
Qc2 {[%clk 0:02:46.8]} 14... Ba6 {[%clk 0:02:32.4]} 15. Rad1 {[%clk 0:02:43.4]}
15... Nge5 {[%clk 0:02:25.7]} 16. h3 {[%clk 0:02:32]} 16... h6 {[%clk
0:02:16.8]} 17. Kh2 {[%clk 0:02:28.4]} 17... Qf6 {[%clk 0:02:15.5]} 18. Nxe5
{[%clk 0:02:21.3]} 18... Nxe5 {[%clk 0:02:14.9]} 19. b3 {[%clk 0:02:15.1]} 19...
Nd3 {[%clk 0:01:59.4]} 20. Rxd3 {[%clk 0:02:08.4]} 20... Bxd3 {[%clk 0:01:58.9]}
21. Qxd3 {[%clk 0:02:09.3]} 21... Qxc3 {[%clk 0:01:59.1]} 22. Qd1 {[%clk
0:02:03]} 22... Rad8 {[%clk 0:01:55.6]} 23. Bf1 {[%clk 0:01:57]} 23... g5 {[%clk
0:01:53.8]} 24. Be3 {[%clk 0:01:56]} 24... f5 {[%clk 0:01:53]} 25. exf5 {[%clk
0:01:52.6]} 25... Rxf5 {[%clk 0:01:53]} 26. Be2 {[%clk 0:01:50.4]} 26... Rdf8
{[%clk 0:01:49.4]} 27. Rf1 {[%clk 0:01:45.4]} 27... Be5 {[%clk 0:01:45.6]} 28.
Bg4 {[%clk 0:01:39.6]} 28... R5f6 {[%clk 0:01:40.5]} 29. Be6+ {[%clk 0:01:39.3]}
29... Kg7 {[%clk 0:01:40.8]} 30. Qe2 {[%clk 0:01:28.3]} 30... Qxb3 {[%clk
0:01:25.7]} 31. h4 {[%clk 0:01:27.7]} 31... Rf3 {[%clk 0:01:18.1]} 32. hxg5
{[%clk 0:00:51.4]} 32... Bxg3+ {[%clk 0:01:13.3]} 33. Kg2 {[%clk 0:00:51.7]}
33... hxg5 {[%clk 0:01:02.7]} 34. Bg4 {[%clk 0:00:44.4]} 34... Rxf2+ {[%clk
0:00:17.8]} 35. Rxf2 {[%clk 0:00:35.6]} 35... Bxf2 {[%clk 0:00:17.7]} 36. Bxf2
{[%clk 0:00:33.7]} 36... Qxd5+ {[%clk 0:00:17.8]} 37. Bf3 {[%clk 0:00:33.9]}
37... Qxf3+ {[%clk 0:00:11.4]} 38. Qxf3 {[%clk 0:00:33]} 38... Rxf3 {[%clk
0:00:11.3]} 39. Kxf3 {[%clk 0:00:33.7]} 39... Kf6 {[%clk 0:00:10.8]} 40. Ke4
{[%clk 0:00:34.3]} 40... Ke6 {[%clk 0:00:10.6]} 41. Bg3 {[%clk 0:00:30.9]} 41...
d5+ {[%clk 0:00:10.4]} 42. Kd3 {[%clk 0:00:31.2]} 42... a6 {[%clk 0:00:09.9]}
43. Bf2 {[%clk 0:00:27.1]} 43... Kd6 {[%clk 0:00:08.4]} 44. Bg3+ {[%clk
0:00:26]} 44... Kc6 {[%clk 0:00:08.4]} 45. Bf2 {[%clk 0:00:17.8]} 45... d4
{[%clk 0:00:05.6]} 46. Ke4 {[%clk 0:00:14.2]} 46... b5 {[%clk 0:00:02.3]} 47. a5
{[%clk 0:00:14.6]} 47... b4 {[%clk 0:00:01.8]} 48. Be1 {[%clk 0:00:14.3]} 48...
Kb5 {[%clk 0:00:02.1]} 49. Kd3 {[%clk 0:00:13.6]} 1-0

[Event "Early-Titled-Tuesday-Blitz-October-10-2023"]
[Site "Chess.com"]
[Date "2023.10.10"]
[Round "10"]
[White "Efremov_Vlad"]
[Black "Doomfist26"]
[Result "0-1"]
[WhiteElo "2380"]
[BlackElo "2634"]
[TimeControl "180+1"]
[EndTime "9:54:45 PDT"]
[Termination "Doomfist26 won by resignation"]

1. e4 {[%clk 0:03:00.9]} 1... e6 {[%clk 0:03:00]} 2. d4 {[%clk 0:02:59]} 2... d5
{[%clk 0:03:00.1]} 3. e5 {[%clk 0:02:59.3]} 3... c5 {[%clk 0:03:00.3]} 4. c3
{[%clk 0:02:59.9]} 4... Nc6 {[%clk 0:03:01]} 5. Nf3 {[%clk 0:03:00.4]} 5... Bd7
{[%clk 0:03:01.7]} 6. Be2 {[%clk 0:03:00.6]} 6... f6 {[%clk 0:03:02.2]} 7. O-O
{[%clk 0:02:59.5]} 7... fxe5 {[%clk 0:03:02.6]} 8. Nxe5 {[%clk 0:03:00.4]} 8...
Nxe5 {[%clk 0:03:02.8]} 9. dxe5 {[%clk 0:03:01.3]} 9... Qc7 {[%clk 0:03:03.4]}
10. c4 {[%clk 0:02:29]} 10... d4 {[%clk 0:03:01.2]} 11. Bd3 {[%clk 0:02:22.3]}
11... O-O-O {[%clk 0:02:58]} 12. Re1 {[%clk 0:02:22.6]} 12... Nh6 {[%clk
0:02:57.8]} 13. Nd2 {[%clk 0:02:18.6]} 13... Nf7 {[%clk 0:02:55.8]} 14. Nf3
{[%clk 0:02:15]} 14... Be7 {[%clk 0:02:51.2]} 15. h4 {[%clk 0:02:06.8]} 15...
Rdg8 {[%clk 0:02:36.8]} 16. b4 {[%clk 0:01:59.8]} 16... g5 {[%clk 0:02:27]} 17.
hxg5 {[%clk 0:01:58.7]} 17... Nxg5 {[%clk 0:02:26.6]} 18. Bxg5 {[%clk
0:01:57.5]} 18... Bxg5 {[%clk 0:02:26.5]} 19. bxc5 {[%clk 0:01:54.5]} 19... Be7
{[%clk 0:02:10]} 20. Be4 {[%clk 0:01:49.5]} 20... Bxc5 {[%clk 0:02:07.5]} 21.
Rb1 {[%clk 0:01:49.6]} 21... Bc6 {[%clk 0:01:45.4]} 22. Qd3 {[%clk 0:01:45.6]}
22... Rg4 {[%clk 0:01:39.1]} 23. Rb5 {[%clk 0:01:20.8]} 23... Bxb5 {[%clk
0:01:10.6]} 24. cxb5 {[%clk 0:01:21.7]} 24... Kb8 {[%clk 0:01:07.3]} 25. Rc1
{[%clk 0:01:20.6]} 25... Qb6 {[%clk 0:01:02.5]} 26. a4 {[%clk 0:01:14.4]} 26...
Be7 {[%clk 0:00:43.2]} 27. Nd2 {[%clk 0:01:04.1]} 27... Qa5 {[%clk 0:00:22]} 28.
Bf3 {[%clk 0:01:00.7]} 28... Rg7 {[%clk 0:00:17.8]} 29. Nb3 {[%clk 0:00:41.3]}
29... Qxa4 {[%clk 0:00:16.8]} 30. Ra1 {[%clk 0:00:41]} 30... Qb4 {[%clk
0:00:16.9]} 31. Na5 {[%clk 0:00:40]} 31... Bd8 {[%clk 0:00:11.6]} 32. Nc4 {[%clk
0:00:24.7]} 32... Qc3 {[%clk 0:00:11]} 33. Qf1 {[%clk 0:00:24.9]} 33... Qxf3
{[%clk 0:00:09.3]} 34. Ra3 {[%clk 0:00:21.9]} 34... Qd5 {[%clk 0:00:08.8]} 35.
Nd6 {[%clk 0:00:21.9]} 35... Qxe5 {[%clk 0:00:08.9]} 36. Nc4 {[%clk 0:00:19.1]}
36... Qc5 {[%clk 0:00:09.1]} 37. Qd3 {[%clk 0:00:16.6]} 37... Rhg8 {[%clk
0:00:09.1]} 38. g3 {[%clk 0:00:16.7]} 38... Bc7 {[%clk 0:00:09.1]} 39. b6 {[%clk
0:00:10.5]} 39... Bxb6 {[%clk 0:00:07.8]} 40. Rb3 {[%clk 0:00:08.2]} 40... Bc7
{[%clk 0:00:05.9]} 41. Qe4 {[%clk 0:00:08.2]} 41... Qd5 {[%clk 0:00:05.5]} 42.
Qe2 {[%clk 0:00:05.1]} 42... Bxg3 {[%clk 0:00:02.4]} 43. fxg3 {[%clk 0:00:06]}
43... Rxg3+ {[%clk 0:00:02.6]} 44. Rxg3 {[%clk 0:00:06.8]} 44... Rxg3+ {[%clk
0:00:03.2]} 45. Kh2 {[%clk 0:00:07.7]} 45... Rg5 {[%clk 0:00:02.1]} 46. Nd2
{[%clk 0:00:06.1]} 46... Rh5+ {[%clk 0:00:02.2]} 47. Kg3 {[%clk 0:00:05.7]}
47... Qg5+ {[%clk 0:00:02.8]} 0-1

[Event "Early-Titled-Tuesday-Blitz-October-10-2023"]
[Site "Chess.com"]
[Date "2023.10.10"]
[Round "10"]
[White "FERNANDEZL1983"]
[Black "lamomiajunior"]
[Result "0-1"]
[WhiteElo "2504"]
[BlackElo "2694"]
[TimeControl "180+1"]
[EndTime "9:54:46 PDT"]
[Termination "lamomiajunior won on time"]

1. d4 {[%clk 0:03:00.9]} 1... Nf6 {[%clk 0:03:00.2]} 2. Bf4 {[%clk 0:02:54.8]}
2... d5 {[%clk 0:02:57.3]} 3. e3 {[%clk 0:02:54.3]} 3... c5 {[%clk 0:02:57.8]}
4. c3 {[%clk 0:02:53.7]} 4... Nc6 {[%clk 0:02:57.8]} 5. Nd2 {[%clk 0:02:53]}
5... Bf5 {[%clk 0:02:58.5]} 6. Ngf3 {[%clk 0:02:52.3]} 6... e6 {[%clk
0:02:58.4]} 7. Bb5 {[%clk 0:02:49.2]} 7... Qb6 {[%clk 0:02:57.6]} 8. Qa4 {[%clk
0:02:17.1]} 8... Nd7 {[%clk 0:02:57.4]} 9. Ne5 {[%clk 0:02:08.8]} 9... Ndxe5
{[%clk 0:02:54.5]} 10. Bxe5 {[%clk 0:02:06.6]} 10... f6 {[%clk 0:02:50.4]} 11.
dxc5 {[%clk 0:01:59.6]} 11... Bxc5 {[%clk 0:02:49.2]} 12. Bd4 {[%clk 0:02:00.1]}
12... O-O {[%clk 0:02:48.8]} 13. Bxc6 {[%clk 0:01:49.9]} 13... bxc6 {[%clk
0:02:45.5]} 14. Nb3 {[%clk 0:01:47.7]} 14... Bxd4 {[%clk 0:02:44.8]} 15. Qxd4
{[%clk 0:01:42.4]} 15... e5 {[%clk 0:02:43.2]} 16. Qc5 {[%clk 0:01:23.6]} 16...
Bc2 {[%clk 0:02:42.6]} 17. Kd2 {[%clk 0:01:19.9]} 17... Bg6 {[%clk 0:02:23.7]}
18. Qxb6 {[%clk 0:01:19.6]} 18... axb6 {[%clk 0:02:24]} 19. a4 {[%clk
0:01:20.4]} 19... c5 {[%clk 0:02:20.5]} 20. Ra3 {[%clk 0:01:15.5]} 20... c4
{[%clk 0:02:18.4]} 21. Na1 {[%clk 0:01:14.2]} 21... Be8 {[%clk 0:02:14.9]} 22.
Nc2 {[%clk 0:01:09]} 22... Rxa4 {[%clk 0:02:13.3]} 23. Rha1 {[%clk 0:01:06.6]}
23... Rxa3 {[%clk 0:01:52.2]} 24. Rxa3 {[%clk 0:01:07.5]} 24... Bg6 {[%clk
0:01:52.8]} 25. Nb4 {[%clk 0:01:06.7]} 25... Rd8 {[%clk 0:01:44.1]} 26. Ra7
{[%clk 0:01:05.5]} 26... Be8 {[%clk 0:01:25.3]} 27. Rb7 {[%clk 0:00:59.9]} 27...
b5 {[%clk 0:01:25.6]} 28. f3 {[%clk 0:00:58.4]} 28... Kf8 {[%clk 0:01:24.4]} 29.
g4 {[%clk 0:00:56.8]} 29... d4 {[%clk 0:01:19.7]} 30. cxd4 {[%clk 0:00:52.8]}
30... exd4 {[%clk 0:01:20.6]} 31. exd4 {[%clk 0:00:51.9]} 31... Rxd4+ {[%clk
0:01:21.5]} 32. Ke3 {[%clk 0:00:51.2]} 32... Rd1 {[%clk 0:01:21.5]} 33. Na6
{[%clk 0:00:43.1]} 33... Rd3+ {[%clk 0:01:19.8]} 34. Ke2 {[%clk 0:00:39.1]}
34... Bc6 {[%clk 0:01:09.3]} 35. Rb8+ {[%clk 0:00:35.6]} 35... Kf7 {[%clk
0:01:09.6]} 36. f4 {[%clk 0:00:27.9]} 36... Bf3+ {[%clk 0:01:08.3]} 37. Kf2
{[%clk 0:00:26.6]} 37... Bxg4 {[%clk 0:01:04.8]} 38. Rxb5 {[%clk 0:00:25.2]}
38... c3 {[%clk 0:01:00.3]} 39. bxc3 {[%clk 0:00:23.5]} 39... Rxc3 {[%clk
0:01:01.2]} 40. Rb7+ {[%clk 0:00:22.3]} 40... Kg6 {[%clk 0:00:59.4]} 41. Nc7
{[%clk 0:00:22.9]} 41... Bc8 {[%clk 0:00:58.8]} 42. Ra7 {[%clk 0:00:22.3]} 42...
Rd3 {[%clk 0:00:39.7]} 43. Ne8 {[%clk 0:00:16.9]} 43... Bd7 {[%clk 0:00:38.5]}
44. Nc7 {[%clk 0:00:15.3]} 44... Kf5 {[%clk 0:00:31.8]} 45. Ke2 {[%clk
0:00:15.2]} 45... Rd6 {[%clk 0:00:26.4]} 46. Ke3 {[%clk 0:00:11.2]} 46... h5
{[%clk 0:00:23]} 47. Na6 {[%clk 0:00:10.7]} 47... g5 {[%clk 0:00:18.7]} 48. Nc5
{[%clk 0:00:11.1]} 48... gxf4+ {[%clk 0:00:13.8]} 49. Ke2 {[%clk 0:00:10.8]}
49... Bb5+ {[%clk 0:00:14]} 50. Kf3 {[%clk 0:00:10.5]} 50... Bc6+ {[%clk
0:00:14.5]} 51. Ke2 {[%clk 0:00:10.5]} 51... Rd5 {[%clk 0:00:14.3]} 52. Nd3
{[%clk 0:00:08]} 52... Bb5 {[%clk 0:00:14.6]} 0-1

[Event "Early-Titled-Tuesday-Blitz-October-10-2023"]
[Site "Chess.com"]
[Date "2023.10.10"]
[Round "10"]
[White "Cambek64"]
[Black "Witty_Alien"]
[Result "1-0"]
[WhiteElo "2418"]
[BlackElo "2235"]
[TimeControl "180+1"]
[EndTime "9:54:47 PDT"]
[Termination "Cambek64 won by checkmate"]

1. e4 {[%clk 0:02:57.9]} 1... a6 {[%clk 0:03:00.3]} 2. d4 {[%clk 0:02:57.2]}
2... e6 {[%clk 0:02:59.1]} 3. f3 {[%clk 0:02:56.3]} 3... Nf6 {[%clk 0:02:56.8]}
4. c3 {[%clk 0:02:55.6]} 4... b6 {[%clk 0:02:49]} 5. Bd3 {[%clk 0:02:55.9]} 5...
Bb7 {[%clk 0:02:49.3]} 6. Be3 {[%clk 0:02:54.8]} 6... d5 {[%clk 0:02:06.5]} 7.
e5 {[%clk 0:02:54.1]} 7... Nfd7 {[%clk 0:02:06.5]} 8. Nd2 {[%clk 0:02:52.1]}
8... c5 {[%clk 0:02:04.9]} 9. f4 {[%clk 0:02:51.4]} 9... c4 {[%clk 0:02:01.9]}
10. Bc2 {[%clk 0:02:50.1]} 10... g6 {[%clk 0:02:02.6]} 11. Ne2 {[%clk
0:02:48.9]} 11... h5 {[%clk 0:02:01.8]} 12. Nf3 {[%clk 0:02:49.1]} 12... Nc6
{[%clk 0:01:59.6]} 13. g3 {[%clk 0:02:49]} 13... b5 {[%clk 0:01:57.4]} 14. h3
{[%clk 0:02:49.1]} 14... b4 {[%clk 0:01:53.6]} 15. Kf2 {[%clk 0:02:48.6]} 15...
a5 {[%clk 0:01:50.8]} 16. g4 {[%clk 0:02:48.5]} 16... a4 {[%clk 0:01:49.2]} 17.
a3 {[%clk 0:02:46.5]} 17... b3 {[%clk 0:01:47.3]} 18. Bb1 {[%clk 0:02:46.7]}
18... hxg4 {[%clk 0:01:44]} 19. hxg4 {[%clk 0:02:45.9]} 19... Rxh1 {[%clk
0:01:44.9]} 20. Qxh1 {[%clk 0:02:45.3]} 20... Qe7 {[%clk 0:01:27.4]} 21. f5
{[%clk 0:02:43.9]} 21... Bg7 {[%clk 0:01:11.6]} 22. Qh7 {[%clk 0:02:36.9]} 22...
exf5 {[%clk 0:00:59.3]} 23. gxf5 {[%clk 0:02:20.6]} 23... Bxe5 {[%clk
0:00:50.1]} 24. fxg6 {[%clk 0:02:12.1]} 24... O-O-O {[%clk 0:00:29.1]} 25. dxe5
{[%clk 0:01:43.5]} 25... Ncxe5 {[%clk 0:00:19.6]} 26. Nxe5 {[%clk 0:01:39]}
26... Nxe5 {[%clk 0:00:19.4]} 27. Bf5+ {[%clk 0:01:36]} 27... Kb8 {[%clk
0:00:14.4]} 28. Nd4 {[%clk 0:01:29.5]} 28... Qf6 {[%clk 0:00:04.5]} 29. g7
{[%clk 0:00:55]} 29... Ka7 {[%clk 0:00:01.2]} 30. g8=Q {[%clk 0:00:50.9]} 30...
Nd3+ {[%clk 0:00:01.1]} 31. Ke2 {[%clk 0:00:49.7]} 31... Rxg8 {[%clk 0:00:01.2]}
32. Qxg8 {[%clk 0:00:49.2]} 32... Nxb2 {[%clk 0:00:01.7]} 33. Nc6+ {[%clk
0:00:25]} 33... Ka6 {[%clk 0:00:01.7]} 34. Nd4 {[%clk 0:00:19.7]} 34... Nd3
{[%clk 0:00:01.8]} 35. Rf1 {[%clk 0:00:18.5]} 35... Qh4 {[%clk 0:00:01.8]} 36.
Qg2 {[%clk 0:00:16.9]} 36... Qh8 {[%clk 0:00:01.4]} 37. Bg4 {[%clk 0:00:15.7]}
37... b2 {[%clk 0:00:01.8]} 38. Bg5 {[%clk 0:00:14.1]} 38... Qh7 {[%clk
0:00:02]} 39. Kd2 {[%clk 0:00:13.2]} 39... Nc1 {[%clk 0:00:01.7]} 40. Rxc1
{[%clk 0:00:12.3]} 40... Qd3+ {[%clk 0:00:02.2]} 41. Ke1 {[%clk 0:00:12.4]}
41... b1=Q {[%clk 0:00:01.6]} 42. Rxb1 {[%clk 0:00:11.8]} 42... Qxb1+ {[%clk
0:00:02.5]} 43. Bd1 {[%clk 0:00:11.4]} 43... Bc8 {[%clk 0:00:02.4]} 44. Qc2
{[%clk 0:00:10.3]} 44... Qa1 {[%clk 0:00:02.5]} 45. Qxa4+ {[%clk 0:00:10.2]}
45... Kb7 {[%clk 0:00:03.2]} 46. Qb5+ {[%clk 0:00:10]} 46... Ka7 {[%clk
0:00:03.9]} 47. Nc6+ {[%clk 0:00:08.7]} 47... Ka8 {[%clk 0:00:04.6]} 48. Qb8#
{[%clk 0:00:08.6]} 1-0

[Event "Early-Titled-Tuesday-Blitz-October-10-2023"]
[Site "Chess.com"]
[Date "2023.10.10"]
[Round "10"]
[White "GothamChess"]
[Black "Amirreza_p"]
[Result "0-1"]
[WhiteElo "2746"]
[BlackElo "2623"]
[TimeControl "180+1"]
[EndTime "9:54:49 PDT"]
[Termination "Amirreza_p won by resignation"]

1. e4 {[%clk 0:03:00.9]} 1... e6 {[%clk 0:02:59.6]} 2. b3 {[%clk 0:03:00.1]}
2... d5 {[%clk 0:03:00.5]} 3. Bb2 {[%clk 0:03:00.2]} 3... dxe4 {[%clk
0:02:57.9]} 4. Nc3 {[%clk 0:03:00.5]} 4... Nf6 {[%clk 0:02:57.3]} 5. Qe2 {[%clk
0:03:01.1]} 5... Be7 {[%clk 0:02:46.8]} 6. O-O-O {[%clk 0:03:00.4]} 6... O-O
{[%clk 0:02:45.4]} 7. g4 {[%clk 0:03:00.6]} 7... a5 {[%clk 0:02:43.9]} 8. a4
{[%clk 0:02:57.7]} 8... Nc6 {[%clk 0:02:42.4]} 9. g5 {[%clk 0:02:45.4]} 9... Nd4
{[%clk 0:02:37.4]} 10. Qe1 {[%clk 0:02:28.5]} 10... Nd5 {[%clk 0:02:30.4]} 11.
Qxe4 {[%clk 0:02:24.5]} 11... Nb4 {[%clk 0:02:29.1]} 12. Nf3 {[%clk 0:02:08.1]}
12... Nbxc2 {[%clk 0:02:23.9]} 13. Bd3 {[%clk 0:02:04.8]} 13... g6 {[%clk
0:01:54.7]} 14. Bxc2 {[%clk 0:01:55.3]} 14... Nxc2 {[%clk 0:01:49.5]} 15. Kxc2
{[%clk 0:01:53.1]} 15... Bxg5 {[%clk 0:01:47.8]} 16. Nxg5 {[%clk 0:01:46.8]}
16... Qxg5 {[%clk 0:01:48.7]} 17. h4 {[%clk 0:01:45.4]} 17... Qc5 {[%clk
0:01:38.6]} 18. h5 {[%clk 0:01:41]} 18... e5 {[%clk 0:01:37.5]} 19. hxg6 {[%clk
0:01:17.4]} 19... fxg6 {[%clk 0:01:37.8]} 20. Qd5+ {[%clk 0:01:16.6]} 20... Qxd5
{[%clk 0:01:37.9]} 21. Nxd5 {[%clk 0:01:17.5]} 21... Rxf2 {[%clk 0:01:36.8]} 22.
Bxe5 {[%clk 0:01:12.6]} 22... Bf5+ {[%clk 0:01:35.8]} 23. Kc3 {[%clk 0:01:06.8]}
23... h5 {[%clk 0:01:33.5]} 24. Nxc7 {[%clk 0:00:43.4]} 24... Rd8 {[%clk
0:01:20.5]} 25. Bd4 {[%clk 0:00:31.4]} 25... Rf4 {[%clk 0:00:56.6]} 26. Nb5
{[%clk 0:00:28.3]} 26... h4 {[%clk 0:00:56.7]} 27. Rdf1 {[%clk 0:00:21.5]} 27...
Rxf1 {[%clk 0:00:46.9]} 28. Rxf1 {[%clk 0:00:22.4]} 28... h3 {[%clk 0:00:47.2]}
29. Rf2 {[%clk 0:00:23]} 29... Kf7 {[%clk 0:00:42.3]} 30. Be5 {[%clk 0:00:18.8]}
30... Rc8+ {[%clk 0:00:39.1]} 31. Kd4 {[%clk 0:00:17.9]} 31... Rc1 {[%clk
0:00:38.6]} 32. Nd6+ {[%clk 0:00:15]} 32... Ke6 {[%clk 0:00:36.7]} 33. Nxf5
{[%clk 0:00:15.6]} 33... gxf5 {[%clk 0:00:36.4]} 34. Bf4 {[%clk 0:00:14.6]}
34... Rg1 {[%clk 0:00:33.4]} 35. Re2+ {[%clk 0:00:14.9]} 35... Kf6 {[%clk
0:00:32]} 36. Kc5 {[%clk 0:00:10.2]} 36... Rg4 {[%clk 0:00:30.8]} 37. Be5+
{[%clk 0:00:10.1]} 37... Kg5 {[%clk 0:00:29.8]} 38. Re3 {[%clk 0:00:07.4]} 38...
Rh4 {[%clk 0:00:26.4]} 39. d4 {[%clk 0:00:04.4]} 39... f4 {[%clk 0:00:24.2]} 40.
Re1 {[%clk 0:00:03.9]} 40... h2 {[%clk 0:00:18.7]} 41. Rh1 {[%clk 0:00:04.1]}
41... Kg4 {[%clk 0:00:17.7]} 42. d5 {[%clk 0:00:04]} 42... Kg3 {[%clk
0:00:17.7]} 43. d6 {[%clk 0:00:02.3]} 43... Rh7 {[%clk 0:00:15.8]} 44. Bxf4+
{[%clk 0:00:01.5]} 44... Kxf4 {[%clk 0:00:16.7]} 45. Rf1+ {[%clk 0:00:01.5]}
45... Ke5 {[%clk 0:00:13.8]} 46. Re1+ {[%clk 0:00:01.8]} 46... Kf6 {[%clk
0:00:12.8]} 47. Rh1 {[%clk 0:00:02.7]} 47... Ke6 {[%clk 0:00:12.5]} 48. Re1+
{[%clk 0:00:03]} 48... Kd7 {[%clk 0:00:12.3]} 49. Rh1 {[%clk 0:00:03.6]} 49...
Rh3 {[%clk 0:00:10.2]} 50. Kb5 {[%clk 0:00:03.1]} 50... Rxb3+ {[%clk 0:00:10]}
51. Kxa5 {[%clk 0:00:03.4]} 51... Rb2 {[%clk 0:00:09.9]} 52. Rf1 {[%clk
0:00:02]} 52... Kxd6 {[%clk 0:00:09.4]} 53. Rb1 {[%clk 0:00:02.5]} 53... b6+
{[%clk 0:00:08.6]} 0-1

[Event "Early-Titled-Tuesday-Blitz-October-10-2023"]
[Site "Chess.com"]
[Date "2023.10.10"]
[Round "10"]
[White "kirillshevchenko"]
[Black "Iball95"]
[Result "0-1"]
[WhiteElo "2968"]
[BlackElo "2829"]
[TimeControl "180+1"]
[EndTime "9:54:50 PDT"]
[Termination "Iball95 won by resignation"]

1. c4 {[%clk 0:02:50.4]} 1... e6 {[%clk 0:02:59.7]} 2. g3 {[%clk 0:02:50.3]}
2... d5 {[%clk 0:03:00]} 3. Bg2 {[%clk 0:02:51]} 3... Nf6 {[%clk 0:03:00.5]} 4.
Nf3 {[%clk 0:02:51.6]} 4... c5 {[%clk 0:03:01.1]} 5. O-O {[%clk 0:02:49.9]} 5...
Nc6 {[%clk 0:03:01.7]} 6. cxd5 {[%clk 0:02:47.8]} 6... exd5 {[%clk 0:03:02.6]}
7. d4 {[%clk 0:02:48.1]} 7... Be7 {[%clk 0:03:03.2]} 8. dxc5 {[%clk 0:02:46.7]}
8... Bxc5 {[%clk 0:03:04.1]} 9. a3 {[%clk 0:02:46.4]} 9... a5 {[%clk 0:03:03.7]}
10. Nc3 {[%clk 0:02:45.9]} 10... O-O {[%clk 0:03:04]} 11. Bf4 {[%clk 0:02:46.1]}
11... Re8 {[%clk 0:02:53.9]} 12. Rc1 {[%clk 0:02:42.3]} 12... Bb6 {[%clk
0:02:46]} 13. Nb5 {[%clk 0:02:34.2]} 13... Ne4 {[%clk 0:02:42.4]} 14. Nd2 {[%clk
0:02:33.7]} 14... Nxf2 {[%clk 0:02:14.2]} 15. Rxf2 {[%clk 0:01:35.5]} 15...
Bxf2+ {[%clk 0:02:15.1]} 16. Kh1 {[%clk 0:01:33.4]} 16... Be3 {[%clk 0:01:48]}
17. Bc7 {[%clk 0:01:09.4]} 17... Qf6 {[%clk 0:01:33.9]} 18. Rc3 {[%clk
0:00:55.6]} 18... d4 {[%clk 0:01:30.1]} 19. Rc5 {[%clk 0:00:49.6]} 19... Bxd2
{[%clk 0:01:04]} 20. Qxd2 {[%clk 0:00:49.1]} 20... Qf2 {[%clk 0:01:04.6]} 21.
Rc2 {[%clk 0:00:16.9]} 21... Bf5 {[%clk 0:00:28.6]} 22. e4 {[%clk 0:00:17.1]}
22... dxe3 {[%clk 0:00:18]} 23. Qxf2 {[%clk 0:00:17.2]} 23... exf2 {[%clk
0:00:18.9]} 24. Rxf2 {[%clk 0:00:17.6]} 24... Re1+ {[%clk 0:00:19.3]} 25. Rf1
{[%clk 0:00:17.2]} 25... Rxf1+ {[%clk 0:00:19.8]} 26. Bxf1 {[%clk 0:00:18.1]}
26... Re8 {[%clk 0:00:19.7]} 27. Kg1 {[%clk 0:00:13.3]} 27... Re1 {[%clk
0:00:19.8]} 28. Kf2 {[%clk 0:00:13.5]} 28... Rb1 {[%clk 0:00:19.4]} 29. Nd6
{[%clk 0:00:13.5]} 29... Rxb2+ {[%clk 0:00:18.8]} 30. Ke3 {[%clk 0:00:14.2]}
30... Be6 {[%clk 0:00:19.1]} 31. h4 {[%clk 0:00:11.2]} 31... Rb3+ {[%clk
0:00:19.3]} 32. Kf4 {[%clk 0:00:11.1]} 32... Rxa3 {[%clk 0:00:19.3]} 33. Nxb7
{[%clk 0:00:11.1]} 33... Ra1 {[%clk 0:00:16.3]} 34. Bb5 {[%clk 0:00:11.3]} 34...
Nd4 {[%clk 0:00:16]} 35. Bd3 {[%clk 0:00:04.5]} 35... Rd1 {[%clk 0:00:15]} 36.
Ke3 {[%clk 0:00:03.8]} 36... a4 {[%clk 0:00:15]} 37. Kxd4 {[%clk 0:00:03.5]}
37... Bf5 {[%clk 0:00:13.2]} 38. Nc5 {[%clk 0:00:03.8]} 38... a3 {[%clk
0:00:13.6]} 39. Be5 {[%clk 0:00:03.3]} 39... a2 {[%clk 0:00:13.5]} 40. Ke3
{[%clk 0:00:04]} 40... Bxd3 {[%clk 0:00:13.9]} 41. Nxd3 {[%clk 0:00:04.5]} 41...
a1=Q {[%clk 0:00:14.5]} 42. Bxa1 {[%clk 0:00:05]} 42... Rxa1 {[%clk 0:00:15.4]}
43. g4 {[%clk 0:00:05]} 43... Ra3 {[%clk 0:00:14.3]} 44. Ke4 {[%clk 0:00:05.2]}
44... Ra4+ {[%clk 0:00:14.5]} 45. Kf3 {[%clk 0:00:05.3]} 45... f6 {[%clk
0:00:15]} 46. Nf4 {[%clk 0:00:05.6]} 46... Kf7 {[%clk 0:00:15.7]} 47. h5 {[%clk
0:00:05.9]} 47... Ra3+ {[%clk 0:00:15.9]} 48. Kf2 {[%clk 0:00:05.7]} 48... g5
{[%clk 0:00:15.1]} 49. hxg6+ {[%clk 0:00:05.4]} 49... hxg6 {[%clk 0:00:16]} 50.
Nd5 {[%clk 0:00:05.6]} 50... g5 {[%clk 0:00:15.5]} 51. Ne3 {[%clk 0:00:05.7]}
51... Ke6 {[%clk 0:00:15.3]} 52. Ke2 {[%clk 0:00:06.1]} 52... Rc3 {[%clk
0:00:15]} 53. Kd2 {[%clk 0:00:06.2]} 53... Rxe3 {[%clk 0:00:14.2]} 54. Kxe3
{[%clk 0:00:06.1]} 54... Ke5 {[%clk 0:00:14.8]} 0-1